fUST/lending_fUST_20260113
["ID","MTS","AMOUNT","RATE_DAILY","PERIOD"]
[401508685,1768283438607,-1000.0,0.00019004,2]
[401508686,1768283438617,-791.0,0.00019004,2]
[401508687,1768283438627,-800.0,0.00019013,2]
[401508688,1768283438636,-800.0,0.00019023,2]
[401508689,1768283438646,-567.58809301,0.00019039,2]
[401508690,1768283438655,-800.0,0.00019061,2]
[401508691,1768283438665,-800.0,0.00019066,2]
[401508692,1768283438674,-800.0,0.00019079,2]
[401508693,1768283438683,-303.10001603,0.00019089,2]
[401508694,1768283438693,-800.0,0.00019093,2]
[401508695,1768283438707,-800.0,0.00019099,2]
[401508696,1768283438716,-800.0,0.00019124,2]
[401508697,1768283438726,-800.0,0.00019125,2]
[401508698,1768283438736,-800.0,0.00019139,2]
[401508699,1768283438745,-845.0512,0.00019178,2]
[401508700,1768283438754,-150.1,0.00019178,2]
[401508701,1768283438764,-44454.76697552,0.00019223,2]
[401508702,1768283438777,-2048.50718513,0.00019223,2]
[401508703,1768283438788,-672.00159452,0.00019223,2]
[401508704,1768283438799,-746.10586372,0.00019223,2]
[401508745,1768283440520,-42500.2101908,0.00019223,2]
[401509200,1768283445382,-273104.63692066,0.00019223,2]
[401509203,1768283445394,-168.0,0.00019262,2]
[401509204,1768283445406,-17980.37651599,0.00019274,2]
[401509209,1768283445439,-5421.52952985,0.00019274,2]
[401509283,1768283446160,-950.13,0.00019274,2]
[401509291,1768283446219,-1928.52631954,0.00019274,2]
[401509771,1768283546777,-173.51533829,9.942e-05,2]
[401509772,1768283782617,8682.0,0.00030137,120]
[401509773,1768283906900,-626.48466171,9.942e-05,2]
[401509774,1768283906933,-269.66563808,9.948e-05,2]
[401509775,1768283906962,-800.0,9.965e-05,2]
[401509776,1768283906993,-800.0,9.965e-05,2]
[401509777,1768283907023,-318.20545294,0.00011948,2]
[401509778,1768283907184,-366.74526779,0.00013948,2]
[401509780,1768284208708,2102.26,0.00030136,120]
[401509792,1768284632330,-250.57331091,0.00015948,2]
[401509794,1768284632343,-161.0,0.00016,2]
[401509795,1768284632363,-200.0,0.00016438,2]
[401509796,1768284632379,-778.0,0.000166,2]
[401509797,1768284632388,-400.0,0.00017534,2]
[401509799,1768284632398,-1041.66666667,0.0001763,2]
[401509801,1768284632407,-971.90153672,0.00017761,2]
[401509823,1768284638355,-1072.42239394,0.00017761,2]
[401509825,1768284638616,-590.10212921,0.00017761,2]
[401509826,1768284638627,-2634.42605987,0.00017865,2]
[401509827,1768284638636,-300.0,0.00017866,2]
[401509828,1768284638646,-300.0,0.00017866,2]
[401509829,1768284638656,-500.0,0.00017866,2]
[401509830,1768284638665,-177.644,0.00017867,2]
[401509831,1768284638675,-2193.10749251,0.00017867,2]
[401509853,1768284645274,-181.08010149,0.00017936,2]
[401509854,1768284645284,-187.78006525,0.00017936,2]
[401509855,1768284645293,-194.72792766,0.00017936,2]
[401509856,1768284645303,-201.93286099,0.00017936,2]
[401509857,1768284645312,-209.40437684,0.00017936,2]
[401509858,1768284645322,-217.15233878,0.00017936,2]
[401509859,1768284645331,-225.18697532,0.00017936,2]
[401509860,1768284645341,-233.51889341,0.00017936,2]
[401509861,1768284645350,-242.15909246,0.00017936,2]
[401509862,1768284645359,-251.11897888,0.00017936,2]
[401509863,1768284645370,-260.4103811,0.00017936,2]
[401509864,1768284645380,-270.0455652,0.00017936,2]
[401509865,1768284645389,-280.03725112,0.00017936,2]
[401509866,1768284645399,-290.39862941,0.00017936,2]
[401509867,1768284645408,-301.1433787,0.00017936,2]
[401509868,1768284645418,-295.67650687,0.00017948,2]
[401509869,1768284645428,-161.10713224,0.00018,2]
[401509870,1768284645437,-629.0,0.00018112,2]
[401509871,1768284645446,-1367.0,0.00018112,2]
[401509872,1768284645455,-2147.0,0.00018112,2]
[401509873,1768284645465,-509.0,0.00018127,2]
[401509874,1768284645474,-2634.42605987,0.00018177,2]
[401509875,1768284645483,-728.0,0.0001835,2]
[401509876,1768284645492,-2634.42605987,0.00018381,2]
[401509877,1768284645502,-600.0,0.0001863,2]
[401509878,1768284645511,-160.0,0.0001867,2]
[401509879,1768284645520,-153.05952638,0.00018789,2]
[401509880,1768284645530,-238.47647303,0.00018789,2]
[401509881,1768284645539,-36472.94605406,0.0001879,2]
[401509896,1768284646353,-21640.52891225,0.0001879,2]
[401509897,1768284646468,-1064.02929448,0.0001879,2]
[401509899,1768284806483,151.0,0.00030137,120]
[401509900,1768284815660,151.0,0.00030137,120]
[401509901,1768284850250,160.0,0.00030137,120]
[401509902,1768284857587,160.0,0.00030137,120]
[401509904,1768284864905,160.0,0.00030137,120]
[401509905,1768284873872,160.0,0.00030137,120]
[401509906,1768284880208,-168.38318143,0.00013,2]
[401509907,1768284880239,-257.20129045,0.0001465,2]
[401509908,1768284880619,663.3575675,0.00015522,2]
[401509910,1768284883979,160.0,0.00030137,120]
[401509911,1768284893100,160.0,0.00030137,120]
[401509912,1768284895426,164.654,0.00015683,2]
[401509919,1768284900927,160.0,0.00030137,120]
[401509921,1768284904593,177.52279,0.0001265,2]
[401509922,1768284904797,177.52279,0.00014648,2]
[401509923,1768284908776,160.0,0.00030137,120]
[401509928,1768285090580,246.67751097,0.00030136,120]
[401509932,1768285358250,-4256.2299451,0.00015472,2]
[401509933,1768285358278,-602.6579968,0.0001563,2]
[401509934,1768285358600,-282.2341162,0.0001563,2]
[401509935,1768285358630,-646.0,0.0001563,2]
[401509939,1768285715176,5900.57831785,7.3e-05,2]
[401509967,1768285832468,-1594.9753422,0.000156,2]
[401509969,1768285832478,-252.05726464,0.000156,2]
[401509971,1768285832487,-645.0,0.000156,2]
[401509973,1768285832497,-1000.0,0.0001563,2]
[401509975,1768285832507,-200.0,0.00016438,2]
[401509977,1768285832516,-1200.0,0.00016523,2]
[401509979,1768285832526,-372.4868568,0.00016524,2]
[401509995,1768285838493,-1501.88474,0.00010959,2]
[401509996,1768285838503,-180.52539937,0.00016524,2]
[401509997,1768285838512,-500.0,0.00016524,2]
[401509998,1768285838522,-500.0,0.00016524,2]
[401509999,1768285838531,-500.0,0.00016524,2]
[401510000,1768285838543,-500.0,0.00016524,2]
[401510001,1768285838553,-500.0,0.00016524,2]
[401510002,1768285838562,-500.0,0.00016524,2]
[401510003,1768285838572,-500.0,0.00016524,2]
[401510004,1768285838582,-453.5931612,0.00016524,2]
[401510005,1768285838591,-2454.44352783,0.00016524,2]
[401510006,1768285838601,-300.0,0.00016524,2]
[401510007,1768285838612,-300.0,0.00016524,2]
[401510008,1768285838622,-167.93554979,0.00016524,2]
[401510009,1768285838633,-132.06445021,0.00016524,2]
[401510010,1768285838642,-10389.1061126,0.00016525,2]
[401510011,1768285838654,-3922.16002755,0.00016525,2]
[401510012,1768285838665,-30764.46480699,0.00016525,2]
[401510013,1768285838677,-1618.48555285,0.00016525,2]
[401510014,1768285838688,-418.49770858,0.00016525,2]
[401510015,1768285838700,-72713.76096772,0.00016525,2]
[401510036,1768285840664,-714.01,0.00016515,3]
[401510038,1768285840673,-4804.79892051,0.00016525,2]
[401510040,1768285840684,-526.30212007,0.00016525,2]
[401510046,1768285840724,-39711.6096101,0.00016525,2]
[401510548,1768285845923,-15690.20064092,0.00016525,2]
[401510550,1768285845935,-2933.20552215,0.00016525,2]
[401510607,1768285846482,-6123.83428489,0.00016525,2]
[401510613,1768285846549,-26982.18879854,0.00016525,2]
[401510784,1768285998669,305.54614768,0.00030136,120]
[401510786,1768286907602,-155.0,0.0001,2]
[401510787,1768286907623,-9.17537596,0.00012471,2]
[401510788,1768286909192,-259.99040964,0.00012471,2]
[401510805,1768287031685,-6.77108028,0.00012471,2]
[401510806,1768287031695,-300.0,0.0001488,2]
[401510807,1768287031705,-29.68152913,0.0001488,2]
[401510808,1768287031748,-270.31847087,0.0001488,2]
[401510809,1768287031757,-300.0,0.00014881,2]
[401510810,1768287031766,-300.0,0.00014881,2]
[401510811,1768287031776,-300.0,0.00014881,2]
[401510812,1768287031785,-300.0,0.00014881,2]
[401510813,1768287031794,-300.0,0.00014881,2]
[401510814,1768287031803,-300.0,0.00014881,2]
[401510815,1768287031813,-300.0,0.00014881,2]
[401510816,1768287031822,-300.0,0.00014881,2]
[401510817,1768287031832,-300.0,0.00014881,2]
[401510818,1768287031841,-300.0,0.00014881,2]
[401510819,1768287031851,-300.0,0.00014881,2]
[401510820,1768287031860,-300.0,0.00014881,2]
[401510821,1768287031870,-300.0,0.00014881,2]
[401510822,1768287031879,-300.0,0.00014881,2]
[401510823,1768287031888,-300.0,0.00014881,2]
[401510824,1768287031897,-50000.0,0.00014881,2]
[401510825,1768287031911,-60721.01352179,0.0001499,2]
[401510826,1768287031921,-204.6971963,0.00015278,2]
[401510827,1768287031933,-600.0,0.00015289,2]
[401510828,1768287031943,-261.76267732,0.00015426,2]
[401510829,1768287031953,-174.168535,0.00015574,2]
[401510830,1768287031963,-1129.43,0.0001588,3]
[401510831,1768287031973,-747.31,0.0001588,3]
[401510832,1768287031983,-373.66,0.0001588,3]
[401510833,1768287031993,-186.83,0.0001588,3]
[401510834,1768287032002,-560.51,0.0001588,3]
[401510835,1768287032014,-3694.72723459,0.00015889,2]
[401510836,1768287032024,-328.17701791,0.00015889,2]
[401510837,1768287032033,-46676.58811511,0.0001589,2]
[401510838,1768287037867,-2792.14171725,0.0001589,2]
[401510839,1768287037881,-1047.52399905,0.0001589,2]
[401510840,1768287037891,-362.65480905,0.0001589,2]
[401511516,1768287046456,-604.0,0.0001589,2]
[401511518,1768287046468,-1000.0,0.0001589,2]
[401511525,1768287046520,-1114.14612778,0.0001589,2]
[401513230,1768287081236,10000.0,0.00030136,120]
[401513231,1768287161550,-414.92608397,0.00014912,2]
[401513232,1768287164384,-342.87325689,0.00014912,2]
[401513233,1768287166459,-178.74164817,0.00014912,2]
[401513234,1768287170410,-228.08421647,0.00014912,2]
[401513235,1768287172090,-235.6047945,0.00014912,2]
[401513236,1768287401840,-211.41602581,0.00014911,2]
[401513237,1768287403637,-88.58397419,0.00014911,2]
[401513238,1768287403660,-300.0,0.00014911,2]
[401513239,1768287403682,-90.99007629,0.00014912,2]
[401513249,1768287656609,-359.20701261,0.00014226,2]
[401513250,1768287660088,-178.51215727,0.00014226,2]
[401513251,1768287662349,-207.38050303,0.00014226,2]
[401513252,1768287664071,-177.15831312,0.00014226,2]
[401513253,1768287670073,-548.79601148,0.00014226,2]
[401513254,1768287672893,-493.53016989,0.00014226,2]
[401513255,1768287674523,-212.60059896,0.00014226,2]
[401513256,1768287677371,-300.0,0.00014226,2]
[401513257,1768287679540,-151.02419318,0.00014226,2]
[401513258,1768287682580,-243.0,0.00014226,2]
[401513259,1768287684370,-243.0,0.00014226,2]
[401513260,1768287687149,-185.82457809,0.00014226,2]
[401513261,1768287688780,-309.82486322,0.00014226,2]
[401513262,1768287691499,-222.17185254,0.00014226,2]
[401513263,1768287693183,-276.94,0.00014226,2]
[401513264,1768287694910,-284.912,0.00014226,2]
[401513265,1768287696736,-378.44058564,0.00014226,2]
[401513279,1768287761478,-341.50000179,0.00014226,2]
[401513280,1768287764298,-180.32183878,0.00014226,2]
[401513283,1768287767890,-211.4232998,0.00014226,2]
[401513285,1768287770067,-221.67868038,0.00014226,2]
[401513286,1768287774729,-249.27944371,0.00014226,2]
[401513287,1768287778137,-389.26616524,0.00014226,2]
[401513288,1768287783264,-219.18533808,0.00014226,2]
[401513289,1768287785689,-241.90987175,0.00014226,2]
[401513290,1768287788834,-331.06491163,0.00014226,2]
[401513291,1768287790544,-212.18080398,0.00014226,2]
[401513292,1768287793393,-285.68175046,0.00014226,2]
[401513293,1768287795008,-258.97,0.00014226,2]
[401513294,1768287806466,-167.60787051,0.00014226,2]
[401513295,1768287810127,-300.0,0.00014226,2]
[401513296,1768287812481,-163.04901972,0.00014226,2]
[401513319,1768287926490,-126.99539854,0.00014226,2]
[401513320,1768287926515,-265.01067662,0.00014346,2]
[401513321,1768287926540,-180.70097665,0.00014467,2]
[401513322,1768287929485,-119.29902335,0.00014467,2]
[401513323,1768287929507,-53.89764405,0.00014467,2]
[401513324,1768287933474,-165.14753977,0.00014467,2]
[401513325,1768287935055,-80.95481618,0.00014467,2]
[401513326,1768287935076,-111.82518382,0.00014468,2]
[401513327,1768287936802,-154.3066349,0.00014468,2]
[401513328,1768287938996,-500.0,0.00014468,2]
[401513329,1768287940587,-174.104,0.00014468,2]
[401513330,1768287942768,-181.9,0.00014468,2]
[401513331,1768287944405,-160.77133971,0.00014468,2]
[401513332,1768287947905,-167.7565346,0.00014468,2]
[401513333,1768287951084,-206.1657517,0.00014468,2]
[401513334,1768287954010,-210.73383476,0.00014468,2]
[401513335,1768287955717,-172.74084344,0.00014468,2]
[401513336,1768287958443,-315.73926649,0.00014468,2]
[401513337,1768287962202,-479.00513455,0.00014468,2]
[401513338,1768287986501,-219.87787271,0.00014467,2]
[401513339,1768287989471,-80.12212729,0.00014467,2]
[401513340,1768287989497,-74.1156777,0.00014468,2]
[401513341,1768287991125,-213.65659245,0.00014468,2]
[401513342,1768287992926,-334.65554086,0.00014468,2]
[401513343,1768287998397,-286.53438863,0.00014468,2]
[401513344,1768288001941,-319.35056567,0.00014468,2]
[401513345,1768288007884,-184.26073351,0.00014468,2]
[401513346,1768288010908,-435.41858747,0.00014468,2]
[401513347,1768288014395,-332.55268569,0.00014468,2]
[401513348,1768288017227,-264.66431513,0.00014468,2]
[401513349,1768288020118,-455.94462401,0.00014468,2]
[401513350,1768288023625,-725.59583089,0.00014468,2]
[401513351,1768288026027,-539.84214112,0.00014468,2]
[401513352,1768288028209,-300.0,0.00014468,2]
[401513353,1768288030535,-295.81390801,0.00014468,2]
[401513354,1768288033401,-335.02197347,0.00014468,2]
[401513355,1768288035062,-219.37892197,0.00014468,2]
[401513356,1768288042195,-319.81305002,0.00014468,2]
[401513357,1768288045273,-193.16145965,0.00014468,2]
[401513358,1768288050034,-167.65623426,0.00014468,2]
[401513359,1768288051739,-208.255707,0.00012329,2]
[401513360,1768288053389,-199.81028461,0.00012329,2]
[401513361,1768288055686,-404.7304009,0.00012329,2]
[401513362,1768288057462,-280.07401346,0.00012329,2]
[401513363,1768288059261,-157.17890079,0.00012329,2]
[401513364,1768288061686,-412.92885453,0.00012329,2]
[401513365,1768288065196,-243.03863179,0.00012329,2]
[401513366,1768288066862,-159.22780638,0.00012329,2]
[401513367,1768288068292,-257.06635604,0.00012329,2]
[401513368,1768288070027,-500.0,0.00012329,2]
[401513369,1768288072262,-153.6883592,0.00012329,2]
[401513370,1768288074468,-200.0,0.00012329,2]
[401513371,1768288076085,-300.0,0.00012329,2]
[401513372,1768288078338,-19.4306853,0.00012329,2]
[401513373,1768288078365,-285.9646787,0.00012329,2]
[401513374,1768288081399,-155.11869083,0.00012329,2]
[401513375,1768288083138,-300.0,0.00012328,2]
[401513376,1768288083160,-2.0646316,0.00012329,2]
[401513377,1768288084811,-363.12976869,0.00012329,2]
[401513378,1768288086974,-154.94649835,0.00012329,2]
[401513379,1768288088680,-326.60626936,0.00012329,2]
[401513380,1768288090438,-414.62947799,0.00012329,2]
[401513381,1768288093139,-463.40412149,0.00012329,2]
[401513382,1768288094687,-402.2333988,0.00012329,2]
[401513383,1768288096841,-240.27105052,0.00012329,2]
[401513384,1768288099035,-104.49141367,0.00012329,2]
[401513385,1768288099062,-207.10283463,0.00012329,2]
[401513386,1768288101183,-479.82470118,0.00012329,2]
[401513387,1768288104116,-212.06698349,0.00012329,2]
[401513388,1768288105723,-258.54246207,0.00012329,2]
[401513389,1768288108645,-274.45753793,0.00012329,2]
[401513390,1768288111572,-168.14582177,0.00012329,2]
[401513391,1768288117251,-296.61904294,0.00012329,2]
[401513392,1768288118889,-152.59229378,0.00012329,2]
[401513393,1768288125710,-187.12,0.00012329,2]
[401513394,1768288132436,-190.90832221,0.00012329,2]
[401513395,1768288132457,-0.30396677,0.00012329,2]
[401513396,1768288134017,-349.95663736,0.00012329,2]
[401513397,1768288136281,-163.45608618,0.00012329,2]
[401513398,1768288137891,-449.23066933,0.00012329,2]
[401513399,1768288143282,-155.04761584,0.00012328,2]
[401513400,1768288146238,-144.95238416,0.00012328,2]
[401513401,1768288146260,-27.78845928,0.00012329,2]
[401513402,1768288147819,-166.74711218,0.00012329,2]
[401513403,1768288150187,-284.67294533,0.00012329,2]
[401513404,1768288151174,500.0,0.00030136,120]
[401513405,1768288151435,500.0,0.00030136,120]
[401513406,1768288151686,500.0,0.00030136,120]
[401513407,1768288151939,500.0,0.00030136,120]
[401513408,1768288152191,500.0,0.00030136,120]
[401513409,1768288152447,345.63165485,0.00030136,120]
[401513410,1768288152968,-293.90217923,0.00012329,2]
[401513411,1768288154562,-181.77,0.00012329,2]
[401513412,1768288159184,-104.99194434,0.00012329,2]
[401513413,1768288159206,-170.16235701,0.00012329,2]
[401513414,1768288160920,-309.10288287,0.00012329,2]
[401513415,1768288163218,-194.65023604,0.00012329,2]
[401513416,1768288165583,500.0,0.00030136,120]
[401513417,1768288165834,500.0,0.00030136,120]
[401513418,1768288166102,500.0,0.00030136,120]
[401513419,1768288166369,500.0,0.00030136,120]
[401513420,1768288166665,500.0,0.00030136,120]
[401513421,1768288166900,500.0,0.00030136,120]
[401513422,1768288167168,500.0,0.00030136,120]
[401513423,1768288167427,500.0,0.00030136,120]
[401513424,1768288167704,531.74405721,0.00030136,120]
[401513425,1768288168235,-164.46405627,0.00012329,2]
[401513426,1768288169899,-203.20803785,0.00012329,2]
[401513427,1768288172253,-214.21744863,0.00012329,2]
[401513428,1768288174065,-159.37405164,0.00012329,2]
[401513429,1768288175809,-259.73378036,0.00012329,2]
[401513430,1768288177367,-10.76714933,0.00012329,2]
[401513431,1768288177389,-238.72285067,0.00012329,2]
[401513432,1768288179038,-300.0,0.00012329,2]
[401513433,1768288182972,-198.33543308,0.00012329,2]
[401513434,1768288189014,-157.87416908,0.00012329,2]
[401513435,1768288193900,-206.62191573,0.00012329,2]
[401513436,1768288194099,500.0,0.00030136,120]
[401513437,1768288194384,500.0,0.00030136,120]
[401513438,1768288194641,500.0,0.00030136,120]
[401513439,1768288194893,500.0,0.00030136,120]
[401513440,1768288195325,500.0,0.00030136,120]
[401513441,1768288195554,500.0,0.00030136,120]
[401513442,1768288195837,500.0,0.00030136,120]
[401513443,1768288196137,500.0,0.00030136,120]
[401513444,1768288196396,500.0,0.00030136,120]
[401513445,1768288196685,500.0,0.00030136,120]
[401513446,1768288197079,500.0,0.00030136,120]
[401513447,1768288197292,-162.62594836,0.00012329,2]
[401513448,1768288197374,500.0,0.00030136,120]
[401513449,1768288197647,500.0,0.00030136,120]
[401513450,1768288197903,500.0,0.00030136,120]
[401513451,1768288198191,500.0,0.00030136,120]
[401513452,1768288198466,165.08542057,0.00030136,120]
[401513453,1768288199468,-180.05968308,0.00012329,2]
[401513454,1768288199494,-54.4592643,0.00012329,2]
[401513455,1768288204809,-331.54572381,0.00012329,2]
[401513456,1768288209549,-156.89941992,0.00012329,2]
[401513457,1768288211531,504.88631964,0.00030136,120]
[401513458,1768288212319,-175.8120154,0.00012329,2]
[401513459,1768288214033,-247.8309821,0.00012329,2]
[401513460,1768288216066,-236.98259447,0.00012329,2]
[401513461,1768288216087,-47.81782933,0.00012329,2]
[401513462,1768288222583,-696.26133404,0.00012329,2]
[401513463,1768288224924,500.0,0.00030136,120]
[401513464,1768288225191,500.0,0.00030136,120]
[401513465,1768288225459,509.59159046,0.00030136,120]
[401513466,1768288230559,-199.95893068,0.00012329,2]
[401513467,1768288230925,500.0,0.00030136,120]
[401513468,1768288231174,500.0,0.00030136,120]
[401513470,1768288231438,512.00509442,0.00030136,120]
[401513482,1768288231797,-58.91190595,0.00012329,2]
[401513484,1768288231807,-763.9390056,0.00012329,2]
[401513486,1768288231819,-71.8509944,0.00012329,2]
[401513488,1768288231828,-696.49,0.00012329,2]
[401513490,1768288231838,-580.41,0.00012329,2]
[401513492,1768288231847,-483.67,0.00012329,2]
[401513494,1768288231856,-403.06,0.00012329,2]
[401513496,1768288231865,-335.88,0.00012329,2]
[401513498,1768288231875,-279.9,0.00012329,2]
[401513499,1768288231885,-233.25,0.00012329,2]
[401513501,1768288231894,-194.38,0.00012329,2]
[401513503,1768288231903,-161.98,0.00012329,2]
[401513505,1768288231913,-268.32275812,0.00012451,2]
[401513506,1768288231923,-14497.96086786,0.00012574,2]
[401513507,1768288231935,-534.54761844,0.00012574,2]
[401513510,1768288233228,500.0,0.00030136,120]
[401513511,1768288233505,500.0,0.00030136,120]
[401513512,1768288233768,500.0,0.00030136,120]
[401513513,1768288234106,500.0,0.00030136,120]
[401513514,1768288234424,500.0,0.00030136,120]
[401513515,1768288234655,500.0,0.00030136,120]
[401513516,1768288234873,500.0,0.00030136,120]
[401513517,1768288235141,500.0,0.00030136,120]
[401513518,1768288235419,500.0,0.00030136,120]
[401513519,1768288235528,23000.0,0.0003,120]
[401513520,1768288235696,500.0,0.00030136,120]
[401513521,1768288235989,500.0,0.00030136,120]
[401513522,1768288236238,500.0,0.00030136,120]
[401513523,1768288237381,-485.04899532,0.00012574,2]
[401513525,1768288237467,500.0,0.00030136,120]
[401513528,1768288237756,500.0,0.00030136,120]
[401513542,1768288238043,500.0,0.00030136,120]
[401513547,1768288238322,500.0,0.00030136,120]
[401513548,1768288238586,500.0,0.00030136,120]
[401513549,1768288238880,500.0,0.00030136,120]
[401513550,1768288238995,-166.66666668,0.00012574,2]
[401513551,1768288239344,500.0,0.00030136,120]
[401513552,1768288239608,500.0,0.00030136,120]
[401513553,1768288239839,500.0,0.00030136,120]
[401513686,1768288241594,500.0,0.00030136,120]
[401513696,1768288241677,500.0,0.00030136,120]
[401513705,1768288241758,500.0,0.00030136,120]
[401513723,1768288241923,500.0,0.00030136,120]
[401513732,1768288242000,500.0,0.00030136,120]
[401513742,1768288242084,500.0,0.00030136,120]
[401513752,1768288242168,500.0,0.00030136,120]
[401513760,1768288242245,213.24,0.00030136,120]
[401514118,1768288245694,-809.94,0.00012329,2]
[401514119,1768288245704,-3982.72055545,0.00012574,2]
[401514120,1768288245713,-300.0,0.00012574,2]
[401514121,1768288245722,-300.0,0.00012574,2]
[401514122,1768288245731,-300.0,0.00012574,2]
[401514123,1768288245741,-300.0,0.00012574,2]
[401514124,1768288245750,-300.0,0.00012574,2]
[401514125,1768288245760,-300.0,0.00012574,2]
[401514126,1768288245769,-300.0,0.00012574,2]
[401514127,1768288245778,-300.0,0.00012574,2]
[401514128,1768288245787,-300.0,0.00012574,2]
[401514129,1768288245796,-300.0,0.00012574,2]
[401514130,1768288245806,-300.0,0.00012574,2]
[401514131,1768288245815,-300.0,0.00012574,2]
[401514132,1768288245824,-300.0,0.00012574,2]
[401514133,1768288245834,-300.0,0.00012574,2]
[401514134,1768288245843,-300.0,0.00012574,2]
[401514135,1768288245852,-442.446056,0.00013862,2]
[401514136,1768288245861,-316.62085458,0.00014451,2]
[401514137,1768288245870,-6484.77460772,0.00014468,2]
[401514138,1768288245879,-600.0,0.00014756,2]
[401514139,1768288245888,-500.0,0.00014811,2]
[401514140,1768288245898,-310.71744619,0.00014811,2]
[401514141,1768288245907,-200.0,0.00014811,2]
[401514142,1768288245916,-160.0,0.00014811,2]
[401514143,1768288245924,-3906.34581024,0.00014812,2]
[401514144,1768288245939,-555006.95826053,0.00014812,2]
[401516171,1768288269242,400.59642258,0.00030136,120]
[401519153,1768288300617,500.0,0.00030136,120]
[401519181,1768288300879,500.0,0.00030136,120]
[401519207,1768288301125,500.0,0.00030136,120]
[401519233,1768288301385,500.0,0.00030136,120]
[401519264,1768288301701,500.0,0.00030136,120]
[401519290,1768288301962,500.0,0.00030136,120]
[401519314,1768288302217,500.0,0.00030136,120]
[401519326,1768288302459,511.30589035,0.00030136,120]
[401519459,1768288303802,-151.0,0.0001537,30]
[401519631,1768288305598,-151.0,0.0001537,30]
[401519717,1768288306497,-151.0,0.0001537,30]
[401519769,1768288307329,-47.0,0.0001537,30]
[401519772,1768288307351,-104.0,0.0001537,30]
[401519884,1768288308575,-151.0,0.0001537,30]
[401520063,1768288310670,-225.87514555,0.00012329,2]
[401520948,1768288320783,-284.66777357,0.00012329,2]
[401521302,1768288325074,-300.0,0.00012328,2]
[401521305,1768288325098,-14.04733322,0.00012329,2]
[401521445,1768288327356,-290.53974766,0.00012329,2]
[401521446,1768288327379,-164.73874826,0.00012329,2]
[401521479,1768288334725,-205.14083363,0.00012329,2]
[401521480,1768288336424,500.0,0.00030136,120]
[401521481,1768288336718,500.0,0.00030136,120]
[401521482,1768288336969,500.0,0.00030136,120]
[401521483,1768288337207,500.0,0.00030136,120]
[401521484,1768288337605,500.0,0.00030136,120]
[401521485,1768288337856,500.0,0.00030136,120]
[401521486,1768288338147,530.68362432,0.00030136,120]
[401521487,1768288341200,-208.23196804,0.00012329,2]
[401521488,1768288342966,-101.15845007,0.00012329,2]
[401521489,1768288342989,-162.31579678,0.00012329,2]
[401521490,1768288350277,-231.87954565,0.00012329,2]
[401521491,1768288352016,-171.86465757,0.00012329,2]
[401521492,1768288352037,-238.98534243,0.00012329,2]
[401521493,1768288357803,-176.57844854,0.00012329,2]
[401521494,1768288358221,501.24981215,0.00030136,120]
[401521495,1768288359413,-56.15620903,0.00012329,2]
[401521496,1768288359437,-347.74036561,0.00012329,2]
[401521497,1768288365497,-45.35963439,0.00012329,2]
[401521498,1768288365519,-254.64036561,0.00012329,2]
[401521499,1768288367851,-72.93963439,0.00012329,2]
[401521500,1768288367875,-162.20195573,0.00012329,2]
[401521501,1768288372777,-110.77804427,0.00012329,2]
[401521502,1768288372799,-222.25473987,0.00012329,2]
[401521503,1768288376077,-5.23526013,0.00012329,2]
[401521504,1768288376100,-189.57,0.00012329,2]
[401521505,1768288376124,-157.98,0.00012329,2]
[401521506,1768288376146,-132.37641091,0.00012329,2]
[401521507,1768288381471,-197.98311419,0.00012329,2]